fUSD/lending_fUSD_20240409
["ID","MTS","AMOUNT","RATE_DAILY","PERIOD"]
[321918577,1712620848892,299.99,0.00020149,7]
[321918578,1712620900617,210.24,0.00015813,2]
[321918579,1712620921810,1468.47901264,0.00015813,2]
[321918580,1712620922476,545.75727212,0.00015813,2]
[321918581,1712620937827,240.97703145,0.00015813,2]
[321918582,1712620942635,455.44603868,0.00015813,2]
[321918583,1712621020607,310.38,0.00024329,15]
[321918589,1712621241721,300.0,0.000206,7]
[321918590,1712621242690,794.73,0.00017622,2]
[321918591,1712621243469,600.0,0.000207,7]
[321918594,1712621245657,900.0,0.000208,7]
[321918595,1712621247700,1200.0,0.000209,7]
[321918633,1712621432246,-451.70299826,0.00018596,2]
[321918634,1712621432256,-122.07466744,0.00018598,2]
[321918635,1712621432301,-43.64950361,0.00018598,2]
[321918636,1712621432311,-284.97283069,0.00018695,2]
[321918637,1712621432323,-251.23310467,0.00018695,2]
[321918638,1712621432332,-21111.10727368,0.00018697,2]
[321918639,1712621432413,-467.4610099,0.00018697,2]
[321918640,1712621432424,-13594.19138246,0.00018697,2]
[321918641,1712621432434,-150.0,0.00018698,2]
[321918642,1712621432444,-150.0,0.00018698,2]
[321918643,1712621432453,-11933.49986411,0.00018698,2]
[321918644,1712621432462,-356.61106935,0.000187,2]
[321918645,1712621432472,-1371.1698,0.00018759,2]
[321918646,1712621432482,-150.99,0.00019007,2]
[321918647,1712621432491,-432.56,0.00019482,2]
[321918648,1712621432500,-315.58,0.00019507,2]
[321918649,1712621432510,-640.0,0.0001954,2]
[321918650,1712621432520,-150.0,0.0001954,2]
[321918651,1712621432529,-315.58,0.0001956,2]
[321918652,1712621432538,-3197.06,0.00019575,2]
[321918653,1712621432548,-2342.61,0.0001958,2]
[321918654,1712621432557,-315.58,0.00019614,2]
[321918655,1712621432567,-13673.75,0.00019631,2]
[321918656,1712621432576,-315.58,0.00019667,2]
[321918657,1712621432585,-2356.03750157,0.00019676,2]
[321918658,1712621432595,-23900.0,0.00019677,2]
[321918659,1712621432604,-315.58,0.00019721,2]
[321918660,1712621432613,-165.72417104,0.00019749,2]
[321918661,1712621432623,-160.33,0.00019761,2]
[321918662,1712621432634,-200.0,0.00019766,2]
[321918663,1712621432643,-315.58,0.00019774,2]
[321918664,1712621432653,-315.58,0.00019828,2]
[321918665,1712621432662,-315.58,0.00019881,2]
[321918666,1712621432672,-794.73,0.00019886,2]
[321918667,1712621432681,-315.58,0.00019935,2]
[321918668,1712621432691,-315.58,0.00019988,2]
[321918669,1712621432701,-315.58,0.00020042,2]
[321918670,1712621432710,-315.58,0.00020096,2]
[321918671,1712621432720,-2264.25,0.00020097,2]
[321918672,1712621432729,-155.4,0.00020099,2]
[321918673,1712621432738,-155.4,0.00020124,2]
[321918675,1712621432749,-150.99,0.00020124,2]
[321918677,1712621432758,-1504.61,0.0002013,2]
[321918679,1712621432768,-315.58,0.00020149,2]
[321918681,1712621432778,-155.4,0.00020149,2]
[321918683,1712621432787,-155.4,0.00020174,2]
[321918685,1712621432797,-155.4,0.00020199,2]
[321918687,1712621432807,-315.58,0.00020203,2]
[321918689,1712621432818,-315.58,0.00020256,2]
[321918690,1712621432828,-315.58,0.0002031,2]
[321918691,1712621432837,-315.58,0.00020363,2]
[321918692,1712621432847,-315.58,0.00020417,2]
[321918693,1712621432858,-315.58,0.0002047,2]
[321918694,1712621432867,-315.58,0.00020524,2]
[321918695,1712621432876,-210.0,0.00020568,2]
[321918696,1712621432888,-611.4,0.00020889,2]
[321918697,1712621432897,-155.0,0.00020897,4]
[321918698,1712621432906,-499.99,0.00020898,2]
[321918699,1712621432915,-10816.5023,0.00020898,2]
[321918700,1712621432925,-101127.2403,0.00020898,2]
[321918701,1712621432934,-165.72417104,0.00020899,2]
[321918702,1712621432943,-2300.14946791,0.00020899,2]
[321918703,1712621432952,-186.06693081,0.000209,2]
[321918704,1712621432961,-213.0,0.000209,2]
[321918705,1712621432970,-7139.6603,0.000209,2]
[321918706,1712621432981,-151.39550361,0.000209,2]
[321918707,1712621432991,-155.0,0.000209,2]
[321918708,1712621433000,-893.51569976,0.000209,2]
[321918709,1712621433009,-1260.05020156,0.000209,2]
[321918710,1712621433018,-4873.468818,0.000209,2]
[321918711,1712621433028,-196.61910872,0.000209,3]
[321918712,1712621433037,-273.64656396,0.000209,2]
[321918713,1712621433047,-470.66,0.00020988,3]
[321918714,1712621433056,-181.68754615,0.00020988,2]
[321918715,1712621433066,-574.31820552,0.00020996,2]
[321918716,1712621433075,-2462.68515412,0.00020996,2]
[321918717,1712621433084,-397055.28759384,0.00020998,2]
[321918718,1712621433097,-153371.19347473,0.00020998,2]
[321918719,1712621433107,-446.65151997,0.00020999,2]
[321918720,1712621433117,-17861.10396547,0.00020999,2]
[321918721,1712621433126,-312.4020961,0.00020999,2]
[321918722,1712621433136,-807.30845249,0.00020999,2]
[321918723,1712621433145,-32818.13624972,0.00021,2]
[321918724,1712621433170,-345.65396688,0.00021,2]
[321918725,1712621433199,-1109.80142368,0.00021,2]
[321918733,1712621438363,-197.72098342,0.000209,2]
[321918734,1712621438373,-1323374.27987792,0.00021,2]
[321918735,1712621438385,-771.41111166,0.00021,2]
[321918736,1712621438422,-839.54893376,0.00021,2]
[321918737,1712621438466,-28704.43732148,0.00021,2]
[321918767,1712621440316,-5167.58550361,0.00021,2]
[321918768,1712621440428,-7170.3,0.00021,2]
[321918774,1712621443427,-316.41935863,0.00020899,2]
[321918775,1712621443437,-2400.5711541,0.00020899,2]
[321918776,1712621443446,-7500.0,0.000209,2]
[321918777,1712621443456,-17368.84991712,0.00021,2]
[321918778,1712621443487,-3215.12138355,0.00021,2]
[321918779,1712621443498,-2212.14456168,0.00021,2]
[321918780,1712621443509,-2133.63677967,0.00021,2]
[321918781,1712621443600,-386.28994591,0.00019738,2]
[321918782,1712621443610,-241.25887612,0.00021,2]
[321918784,1712621446525,-28611.66734567,0.00021,2]
[321918785,1712621446630,-496.34826613,0.00021,2]
[321918796,1712621536034,301.44,0.00024329,15]
[321918797,1712621677263,5350.0,0.00026,28]
[321918798,1712621751720,5350.0,0.00026,29]
[321918799,1712622074489,282.6,0.00024329,15]
[321918821,1712622609024,264.93,0.00024329,15]
[321918825,1712622631462,-451.70299826,0.00018897,2]
[321918826,1712622631472,-868.59765889,0.00018898,2]
[321918827,1712622631482,-788.58,0.00020204,2]
[321918828,1712622631492,-940.2343276,0.000208,2]
[321918829,1712622631501,-50817.91314667,0.00020899,2]
[321918830,1712622631511,-155.0,0.000209,2]
[321918831,1712622631521,-4473.33039931,0.000209,2]
[321918832,1712622631531,-155.85265476,0.000209,2]
[321918833,1712622631542,-7500.0,0.000209,2]
[321918834,1712622631551,-2177.27073709,0.000209,2]
[321918835,1712622631560,-457.5539,0.000209,2]
[321918836,1712622631569,-2012.63078443,0.000209,2]
[321918837,1712622631578,-10593.25959593,0.000209,2]
[321918838,1712622631588,-940.2343276,0.000209,2]
[321918839,1712622631597,-848.52162213,0.00020999,2]
[321918840,1712622631606,-287981.12714013,0.00021,2]
[321918841,1712622631631,-3575.05,0.00021,2]
[321918842,1712622631642,-1572.878,0.00021,2]
[321918843,1712622631747,-1163.3,0.00020998,2]
[321918844,1712622631802,-3198.48685585,0.00020998,2]
[321918845,1712622631811,-851.71506988,0.00021,2]
[321918882,1712622639158,-30073.31996361,0.00021,2]
[321918883,1712622639224,-111786.159513,0.00021,2]
[321918886,1712622639974,-221.10197056,0.00020999,2]
[321918887,1712622639984,-611.236241,0.00020999,2]
[321918888,1712622639993,-500.0,0.00020999,2]
[321918889,1712622640003,-296.81557365,0.00020999,2]
[321918890,1712622640012,-1372.9847262,0.00021,2]
[321918891,1712622640024,-4277.44283195,0.00021,2]
[321918892,1712622641677,-49516.18776828,0.00021,2]
[321918893,1712622641687,-569741.87425365,0.00021,2]
[321918894,1712622641697,-550.0,0.00021,3]
[321918895,1712622641707,-867.55663,0.00021,2]
[321918896,1712622641716,-4473.33039931,0.00021506,2]
[321918897,1712622641726,-2177.27073707,0.00021519,2]
[321918898,1712622641737,-10593.25959584,0.00021519,2]
[321918899,1712622641746,-2012.63078439,0.00021579,2]
[321918900,1712622641757,-155.85265468,0.000216,2]
[321918901,1712622641766,-488.0,0.00021933,2]
[321918902,1712622641775,-250.0,0.00021946,2]
[321918903,1712622641784,-337.39,0.00021949,2]
[321918904,1712622641794,-324.69616313,0.00021957,2]
[321918905,1712622641803,-5799.03335893,0.00022,5]
[321918906,1712622641813,-34693.32513743,0.00022,2]
[321918907,1712622641822,-312.71800175,0.00022,2]
[321918908,1712622641831,-7977.12,0.00022109,2]
[321918909,1712622641841,-4473.33039931,0.00022113,2]
[321918910,1712622641850,-250.0,0.00022117,2]
[321918911,1712622641859,-250.0,0.00022124,2]
[321918912,1712622641869,-2177.27073707,0.00022139,2]
[321918913,1712622641879,-10593.25959584,0.00022139,2]
[321918914,1712622641888,-155.44366503,0.00022186,2]
[321918915,1712622641897,-2737.0,0.000222,2]
[321918916,1712622641907,-2012.63078439,0.00022258,2]
[321918917,1712622641915,-512.0,0.00022262,2]
[321918918,1712622641925,-155.85265468,0.000223,2]
[321918919,1712622641934,-2552.9,0.00022359,2]
[321918920,1712622641944,-150.0,0.00022414,2]
[321918921,1712622641953,-575.08127474,0.00022468,2]
[321918922,1712622641968,-213.49872526,0.00022468,2]
[321918923,1712622641977,-800.0,0.00022658,2]
[321918924,1712622641986,-150.0,0.00022675,2]
[321918925,1712622641996,-622.086,0.00022675,2]
[321918926,1712622642005,-214.0,0.00022675,2]
[321918927,1712622642014,-442.0,0.00022675,2]
[321918928,1712622642025,-800.0,0.00022685,2]
[321918929,1712622642035,-4473.33039931,0.00022719,2]
[321918930,1712622642045,-2177.27073707,0.00022758,2]
[321918931,1712622642054,-10593.25959584,0.00022758,2]
[321918932,1712622642063,-2012.63078439,0.00022937,2]
[321918933,1712622642073,-600.0,0.00023,3]
[321918934,1712622642082,-155.85265468,0.00023,2]
[321918935,1712622642092,-500.0,0.0002315,2]
[321918936,1712622642102,-500.0,0.0002315,2]
[321918937,1712622642111,-4473.33039931,0.00023326,2]
[321918938,1712622642122,-2177.27073707,0.00023378,2]
[321918939,1712622642136,-10593.25959584,0.00023378,2]
[321918940,1712622642146,-533.0,0.00023429,2]
[321918941,1712622642155,-2012.63078439,0.00023616,2]
[321918942,1712622642165,-167.0,0.00023669,2]
[321918943,1712622642174,-500.0,0.00023698,2]
[321918944,1712622642183,-155.85265468,0.000237,2]
[321918945,1712622642193,-163.0,0.000239,7]
[321918946,1712622642205,-4473.33039931,0.00023932,2]
[321918947,1712622642216,-2177.27073707,0.00023997,2]
[321918948,1712622642227,-10593.25959584,0.00023997,2]
[321918949,1712622642236,-365.10503971,0.00024,2]
[321918951,1712622642245,-150.0,0.00024,2]
[321918952,1712622642255,-1000.0,0.000241,2]
[321918953,1712622642265,-335.49971668,0.00024153,2]
[321918954,1712622642274,-150.0,0.00024164,2]
[321918955,1712622642283,-210.0,0.0002419,2]
[321918956,1712622642294,-500.0,0.00024194,2]
[321918958,1712622642304,-512.65,0.00024194,2]
[321918959,1712622642314,-500.0,0.00024194,2]
[321918960,1712622642323,-500.0,0.00024194,2]
[321918961,1712622642333,-500.0,0.00024194,2]
[321918962,1712622642345,-500.0,0.00024194,2]
[321918963,1712622642356,-500.0,0.00024194,2]
[321918964,1712622642366,-1000.0,0.000242,2]
[321918965,1712622642377,-500.0,0.00024246,2]
[321918966,1712622642385,-2012.63078439,0.00024295,2]
[321918967,1712622642394,-1240.0,0.000243,2]
[321918968,1712622642403,-798.27272285,0.00024329,4]
[321918969,1712622642413,-24629.31403674,0.00024329,2]
[321918970,1712622642454,-1371.45451449,0.00024329,2]
[321918971,1712622642474,-1468.47901264,0.00024329,2]
[321918972,1712622642483,-18347.28014808,0.00024329,2]
[321918973,1712622642493,-19633.18645277,0.00024329,2]
[321918975,1712622642502,-2208.16129134,0.00024329,2]
[321918977,1712622642511,-323.20134664,0.00024329,2]
[321918979,1712622642520,-179.26784372,0.00024329,2]
[321918981,1712622642529,-1034.14826321,0.00024329,2]
[321918983,1712622642539,-318.92708614,0.00024329,2]
[321918985,1712622642548,-7483.94753543,0.00024329,2]
[321918987,1712622642558,-291.791351,0.00024384,2]
[321918989,1712622642567,-404.74792565,0.00024385,2]
[321918991,1712622642576,-155.85265468,0.000244,2]
[321918993,1712622642585,-150.0,0.00024456,2]
[321918995,1712622642594,-150.0,0.000245,2]
[321918997,1712622642603,-150.59990634,0.00024531,2]
[321918999,1712622642612,-150.59990634,0.00024534,2]
[321919001,1712622642622,-150.0,0.00024534,2]
[321919003,1712622642631,-4473.33039931,0.00024539,2]
[321919005,1712622642641,-150.59990634,0.0002454,2]
[321919007,1712622642649,-150.59990634,0.00024544,2]
[321919009,1712622642658,-150.59990634,0.00024547,2]
[321919011,1712622642667,-200.0,0.00024549,2]
[321919013,1712622642676,-1000.0,0.00024549,2]
[321919015,1712622642685,-500.0,0.00024549,2]
[321919017,1712622642694,-150.59990634,0.0002455,2]
[321919018,1712622642703,-263.81663092,0.00024557,9]
[321919021,1712622642712,-196.61910871,0.00024557,4]
[321919022,1712622642721,-840.03346772,0.00024557,2]
[321919025,1712622642730,-6408.59002063,0.00024557,2]
[321919027,1712622642739,-3248.979212,0.00024557,2]
[321919029,1712622642748,-595.67713318,0.00024557,2]
[321919031,1712622642757,-150.59990634,0.00024582,2]
[321919033,1712622642766,-150.59990634,0.00024587,2]
[321919035,1712622642775,-150.59990634,0.00024598,2]
[321919037,1712622642785,-248.57026579,0.00024599,2]
[321919039,1712622642794,-9571.93306846,0.000246,2]
[321919041,1712622642806,-542.55,0.000246,2]
[321919042,1712622642826,-9885.51693154,0.000246,2]
[321919043,1712622642835,-885.30686175,0.000246,2]
[321919044,1712622642843,-885.30686175,0.000246,2]
[321919045,1712622642853,-150.0,0.00024603,2]
[321919046,1712622642862,-150.0,0.00024606,2]
[321919047,1712622642871,-2177.27073707,0.00024617,2]
[321919048,1712622642880,-150.0,0.00024619,2]
[321919049,1712622642889,-150.0,0.0002462,2]
[321919050,1712622642898,-3418.57166289,0.00024644,2]
[321919051,1712622642909,-336.26904,0.00024644,2]
[321919052,1712622642929,-3811.08288704,0.00024644,2]
[321919053,1712622643217,-885.30686175,0.000246,2]
[321919054,1712622643227,-1589.28854951,0.00024644,2]
[321919055,1712622643239,-2709.46428646,0.00024644,2]
[321919056,1712622643250,-1724.62019863,0.00024644,2]
[321919057,1712622643337,-354.0,0.00022675,2]
[321919058,1712622643347,-1329.12780787,0.00024644,2]
[321919059,1712622643358,-5329.7484991,0.00024644,2]
[321919060,1712622643368,-5053.53110542,0.00024649,2]
[321919061,1712622643380,-1057.73807971,0.00024649,2]
[321919062,1712622643512,-9847.53699327,0.00024649,2]
[321919063,1712622643521,-5167.96966558,0.00024649,2]
[321919109,1712622646693,-7131.8814309,0.00020999,2]
[321919110,1712622646735,-3087.30841069,0.00020999,2]
[321919111,1712622646851,-59289.34285412,0.00020999,2]
[321919112,1712622646862,-500.0,0.00022133,2]
[321919113,1712622646871,-885.30686175,0.000246,2]
[321919114,1712622646882,-10593.25959584,0.00024617,2]
[321919115,1712622646891,-109929.63741218,0.00024649,2]
[321919116,1712622646903,-404.0,0.00024649,2]
[321919138,1712623012848,46783.8262739,0.00024,30]
[321919139,1712623112520,248.37,0.00024329,15]
[321919143,1712623618915,232.84,0.00024329,15]
[321919181,1712623832154,-426.14410958,0.00018613,2]
[321919182,1712623832166,-400.69128335,0.00018614,2]
[321919183,1712623832215,-672.26775027,0.00018614,2]
[321919184,1712623832387,-274.85691421,0.00018614,2]
[321919185,1712623832429,-343.66747969,0.00018614,2]
[321919186,1712623832440,-710.922485,0.00018614,2]
[321919188,1712623832459,-12661.71816287,0.00018614,2]
[321919190,1712623832473,-1136.49675934,0.00018614,2]
[321919210,1712623838018,-4832.23000001,0.00018614,2]
[321919211,1712623838031,-278.72,0.00018614,2]
[321919212,1712623838043,-322.34686166,0.00018614,2]
[321919213,1712623838056,-1154.24000845,0.00018614,2]
[321919214,1712623838066,-13503.69468371,0.00018614,2]
[321919215,1712623838083,-2244.42143757,0.00018614,2]
[321919216,1712623838094,-769.190628,0.00018615,2]
[321919217,1712623838104,-748.27539944,0.00018707,2]
[321919218,1712623838115,-500.0,0.00018708,2]
[321919219,1712623838126,-380.37,0.00018709,2]
[321919220,1712623838137,-236.98871763,0.0001881,2]
[321919221,1712623838148,-236.98871763,0.0001881,2]
[321919223,1712623838159,-236.98871763,0.0001881,2]
[321919224,1712623838171,-236.98871763,0.0001881,2]
[321919225,1712623838182,-236.98871763,0.0001881,2]
[321919226,1712623838192,-1043.11487871,0.00018908,2]
[321919227,1712623838202,-1043.11487871,0.00018908,2]
[321919228,1712623838212,-300.0,0.00019005,2]
[321919229,1712623838222,-150.0,0.00019006,2]
[321919230,1712623838232,-150.0,0.00019006,2]
[321919231,1712623838242,-1967.08084874,0.000194,2]
[321919232,1712623838251,-14455.0397,0.00019535,2]
[321919233,1712623838261,-160.53716068,0.00019739,2]
[321919234,1712623838272,-6208.72680129,0.0002,2]
[321919235,1712623838282,-788.83,0.00020658,2]
[321919236,1712623838293,-2841.88178192,0.00020899,2]
[321919237,1712623838302,-550.0,0.00021,3]
[321919238,1712623838313,-250.0,0.00021918,2]
[321919239,1712623838403,-250.0,0.00021948,2]
[321919240,1712623838413,-542.0,0.000221,2]
[321919241,1712623838422,-168.69,0.00022206,2]
[321919242,1712623838431,-390.4,0.00022248,2]
[321919243,1712623838441,-3037.61,0.00022288,2]
[321919244,1712623838450,-183.75,0.00022432,2]
[321919245,1712623838459,-3900.07083851,0.00022552,2]
[321919246,1712623838472,-1753.27,0.0002267,2]
[321919247,1712623838482,-609.6,0.00022918,2]
[321919248,1712623838493,-788.83,0.00022922,2]
[321919249,1712623838503,-600.0,0.00023,3]
[321919250,1712623838515,-354.0,0.0002304,2]
[321919251,1712623838524,-442.0,0.0002304,2]
[321919252,1712623838533,-214.0,0.0002304,2]
[321919253,1712623838543,-150.0,0.0002304,2]
[321919254,1712623838553,-150.0,0.0002304,2]
[321919255,1712623838565,-500.0,0.0002315,2]
[321919256,1712623838575,-500.0,0.0002315,2]
[321919257,1712623838585,-150.0,0.0002378,2]
[321919258,1712623838595,-150.0,0.00023797,2]
[321919259,1712623838606,-150.0,0.00023868,2]
[321919260,1712623838615,-150.0,0.00023921,2]
[321919261,1712623838626,-150.0,0.0002397,2]
[321919262,1712623838636,-150.0,0.00023997,2]
[321919263,1712623838648,-365.10503971,0.00024,2]
[321919264,1712623838658,-150.0,0.00024013,2]
[321919265,1712623838669,-150.0,0.00024041,2]
[321919266,1712623838678,-150.0,0.00024108,2]
[321919267,1712623838686,-150.0,0.00024113,2]
[321919268,1712623838697,-150.0,0.00024139,2]
[321919269,1712623838708,-279.8934342,0.00024207,2]
[321919270,1712623838719,-300.0,0.00024244,2]
[321919271,1712623838728,-300.0,0.00024244,2]
[321919272,1712623838737,-150.0,0.00024244,2]
[321919273,1712623838746,-349.13,0.00024244,2]
[321919274,1712623838757,-150.0,0.00024244,2]
[321919275,1712623838767,-150.0,0.00024244,2]
[321919276,1712623838776,-349.13,0.00024244,2]
[321919277,1712623838786,-533.42,0.00024244,2]
[321919278,1712623838795,-349.13,0.00024244,2]
[321919279,1712623838804,-150.0,0.00024244,2]
[321919280,1712623838813,-417.68,0.00024244,2]
[321919281,1712623838822,-520.17,0.00024244,2]
[321919282,1712623838831,-520.17,0.00024244,2]
[321919283,1712623838840,-300.91,0.00024244,2]
[321919284,1712623838849,-349.13,0.00024244,2]
[321919285,1712623838858,-417.68,0.00024244,2]
[321919286,1712623838867,-417.68,0.00024244,2]
[321919287,1712623838876,-150.0,0.00024244,2]
[321919288,1712623838885,-520.17,0.00024244,2]
[321919289,1712623838894,-150.0,0.00024244,2]
[321919290,1712623838904,-162.18,0.00024244,2]
[321919291,1712623838915,-520.17,0.00024244,2]
[321919292,1712623838924,-694.44,0.00024244,2]
[321919293,1712623838932,-520.17,0.00024244,2]
[321919294,1712623838941,-520.17,0.00024244,2]
[321919295,1712623838951,-415.51,0.00024244,2]
[321919296,1712623838960,-520.17,0.00024244,2]
[321919297,1712623838969,-150.0,0.00024244,2]
[321919298,1712623838979,-520.17,0.00024244,2]
[321919299,1712623838988,-520.17,0.00024244,2]
[321919300,1712623838997,-170.84,0.00024244,2]
[321919301,1712623839007,-150.0,0.00024244,2]
[321919302,1712623839016,-520.17,0.00024244,2]
[321919303,1712623839026,-300.0,0.00024244,2]
[321919304,1712623839036,-520.17,0.00024244,2]
[321919305,1712623839046,-500.0,0.00024246,2]
[321919306,1712623839055,-355.78106829,0.00024246,2]
[321919307,1712623839065,-7483.94753543,0.00024329,2]
[321919308,1712623839076,-323.20134664,0.00024329,2]
[321919309,1712623839087,-19633.18645277,0.00024329,2]
[321919310,1712623839096,-1034.14826321,0.00024329,2]
[321919311,1712623839105,-153.46,0.0002434,2]
[321919312,1712623839115,-349.13,0.0002434,2]
[321919313,1712623839124,-349.13,0.0002434,2]
[321919314,1712623839134,-150.0,0.00024368,2]
[321919315,1712623839143,-262.612216,0.00024384,2]
[321919316,1712623839152,-722.96386,0.000244,2]
[321919317,1712623839162,-150.0,0.00024478,2]
[321919318,1712623839171,-3177.97787877,0.000245,2]
[321919319,1712623839180,-313.2642,0.00024534,2]
[321919320,1712623839189,-664.00697817,0.00024548,2]
[321919321,1712623839199,-21693.51750198,0.00024552,2]
[321919322,1712623839216,-13650.67989802,0.00024552,2]
[321919323,1712623839225,-500.0,0.00024553,2]
[321919324,1712623839235,-500.0,0.00024553,2]
[321919325,1712623839245,-381.95058232,0.00024553,2]
[321919326,1712623839253,-5369.8976,0.00024554,2]
[321919327,1712623839263,-2269.08341084,0.00024554,2]
[321919328,1712623839273,-155.3185107,0.00024554,2]
[321919329,1712623839282,-317.19092269,0.00024554,2]
[321919330,1712623839291,-194.19078302,0.00024557,2]
[321919331,1712623839301,-211.05330476,0.00024557,9]
[321919332,1712623839311,-292.80366476,0.00024557,2]
[321919333,1712623839320,-397.11808878,0.00024557,2]
[321919334,1712623839329,-560.0223118,0.00024557,2]
[321919335,1712623839339,-250.61319,0.00024596,2]
[321919336,1712623839348,-1000.0,0.00024596,2]
[321919337,1712623839357,-500.0,0.00024596,2]
[321919338,1712623839367,-1238.7212054,0.00024598,2]
[321919339,1712623839376,-31704.0,0.000246,2]
[321919340,1712623839386,-708.2454894,0.000246,2]
[321919341,1712623839395,-708.2454894,0.000246,2]
[321919342,1712623839404,-708.2454894,0.000246,2]
[321919343,1712623839413,-708.2454894,0.000246,2]
[321919344,1712623839422,-708.2454894,0.000246,2]
[321919345,1712623839431,-708.2454894,0.000246,2]
[321919346,1712623839440,-708.2454894,0.000246,2]
[321919347,1712623839449,-708.2454894,0.000246,2]
[321919348,1712623839458,-708.2454894,0.000246,2]
[321919349,1712623839467,-708.2454894,0.000246,2]
[321919350,1712623839476,-708.2454894,0.000246,2]
[321919351,1712623839487,-708.2454894,0.000246,2]
[321919352,1712623839496,-708.2454894,0.000246,2]
[321919353,1712623839505,-708.2454894,0.000246,2]
[321919354,1712623839514,-708.2454894,0.000246,2]
[321919355,1712623839524,-708.2454894,0.000246,2]
[321919357,1712623839533,-708.2454894,0.000246,2]
[321919358,1712623839543,-708.2454894,0.000246,2]
[321919359,1712623839552,-708.2454894,0.000246,2]
[321919361,1712623839562,-708.2454894,0.000246,2]
[321919363,1712623839571,-161.75,0.0002463,2]
[321919364,1712623839580,-38706.44996325,0.0002464,2]
[321919366,1712623839590,-156.00423581,0.00024642,2]
[321919367,1712623839600,-11511.04235223,0.00024642,2]
[321919368,1712623839609,-4312.61714156,0.00024642,2]
[321919369,1712623839619,-192.30060608,0.00024642,2]
[321919370,1712623839628,-67970.84326103,0.00024643,2]
[321919372,1712623842491,-150.0,0.00023863,2]
[321919373,1712623842500,-150.0,0.00023935,2]
[321919374,1712623842510,-150.0,0.00023939,2]
[321919375,1712623842519,-150.0,0.00024533,2]
[321919376,1712623842528,-1305.5802122,0.00024557,2]
[321919377,1712623842539,-540.11709637,0.00024557,2]
[321919378,1712623842727,-430.68717431,0.00024557,2]
[321919379,1712623842737,-13401.6460526,0.00024643,2]
[321919380,1712623842943,-503.44499998,0.00024643,2]
[321919381,1712623843004,-1817.18581318,0.00024643,2]
[321919382,1712623843016,-2187.71937845,0.00024643,2]
[321919383,1712623843122,-2232.67780222,0.00024643,2]
[321919384,1712623843131,-1676.9966338,0.00024649,2]
[321919385,1712623843141,-6511.99902577,0.00024649,2]
[321919386,1712623843150,-274.37878966,0.00024649,2]
[321919387,1712623843159,-557.42117934,0.00024649,2]
[321919388,1712623843170,-290.42891801,0.00024649,2]
[321919389,1712623843179,-2000.0,0.00024649,2]
[321919390,1712623843188,-200.0,0.00024649,2]
[321919391,1712623843197,-182.79212662,0.00024649,2]
[321919392,1712623843206,-200.0,0.00024649,2]
[321919393,1712623843216,-150.0,0.0002465,2]
[321919394,1712623843225,-264.28399377,0.00024651,2]
[321919395,1712623843234,-358.05024277,0.00024651,2]
[321919396,1712623843243,-155.0,0.00024651,2]
[321919397,1712623843252,-844.34598028,0.00024651,2]
[321919398,1712623843261,-407.75685115,0.00024651,2]
[321919399,1712623843270,-186.9981662,0.00024651,2]
[321919400,1712623843279,-429.19787776,0.00024651,2]
[321919401,1712623843288,-706.99577818,0.00024651,2]
[321919402,1712623843297,-193.75811988,0.00024651,2]
[321919403,1712623843306,-759.42144897,0.00024652,2]
[321919404,1712623843315,-155.0,0.00024652,2]
[321919405,1712623843324,-331.65010547,0.00024652,2]
[321919406,1712623843333,-366.46665112,0.00024652,2]
[321919407,1712623843342,-220.30664796,0.00024652,2]
[321919409,1712623843351,-291.08828219,0.00024653,2]
[321919411,1712623843359,-5058.20007079,0.00024653,2]
[321919413,1712623843369,-9828.39238028,0.00024654,2]
[321919419,1712623845779,-731.8278512,0.00024654,2]